bitfinex-derivatives/quotes_BTCF0:USTF0_20241015
["timestamp","ask_amount","ask_price","bid_price","bid_amount"]
[1729001675486,0.70599,67404.0,67391.0,0.33499363]
[1729001675787,0.69999,67404.0,67401.0,0.074193]
[1729001675983,0.3608,67403.0,67401.0,0.074193]
[1729001676480,0.3608,67403.0,67396.0,0.074198]
[1729001676681,0.3608,67403.0,67391.0,0.50557037]
[1729001676877,0.434991,67403.0,67391.0,0.50557037]
[1729001677087,0.434991,67403.0,67399.0,0.074196]
[1729001677276,0.3648,67403.0,67399.0,0.074196]
[1729001677475,0.074195,67400.0,67399.0,0.17057674]
[1729001678087,0.3648,67403.0,67399.0,0.24477274]
[1729001678288,0.438992,67403.0,67399.0,0.24477274]
[1729001678581,0.07424041,67402.0,67400.0,0.074194]
[1729001678786,0.3688,67403.0,67399.0,0.17057674]
[1729001678985,0.074195,67400.0,67399.0,0.17057674]
[1729001679180,0.3688,67403.0,67401.0,0.074193]
[1729001679380,0.004,67403.0,67402.0,0.074192]
[1729001679577,0.008,67403.0,67402.0,0.074192]
[1729001679889,0.26804741,67403.0,67391.0,0.3181]
[1729001680086,0.0742,67396.0,67393.0,0.074202]
[1729001680292,0.0742,67396.0,67394.0,0.074201]
[1729001680483,0.001,67400.0,67396.0,0.074199]
[1729001680685,0.001,67400.0,67394.0,0.17057674]
[1729001680878,0.074198,67397.0,67394.0,0.24477774]
[1729001681183,0.001,67400.0,67396.0,0.074199]
[1729001681184,0.26,67398.0,67396.0,0.074199]
[1729001681485,0.26,67398.0,67382.0,0.435013]
[1729001681784,0.3608,67399.0,67382.0,0.60559074]
[1729001681785,0.26,67383.0,67382.0,0.60559074]
[1729001682094,0.074209,67387.0,67386.0,0.074209]
[1729001682393,0.26,67387.0,67370.0,0.00222606]
[1729001682584,0.26,67372.0,67370.0,0.1728028]
[1729001682779,0.26,67372.0,67371.0,0.074227]
[1729001683187,0.3608,67377.0,67371.0,0.17057674]
[1729001683388,0.074218,67379.0,67371.0,0.17057674]
[1729001683590,0.074218,67379.0,67372.0,0.074225]
[1729001683890,0.001,67383.0,67382.0,0.074214]
[1729001684084,0.261,67383.0,67382.0,0.074214]
[1729001684280,0.261,67383.0,67376.0,0.3608]
[1729001684494,0.26,67377.0,67376.0,0.24479774]
[1729001684885,0.26,67377.0,67376.0,0.17057674]
[1729001685079,0.26,67377.0,67376.0,0.24479774]
[1729001685283,0.074205,67391.0,67390.0,0.074205]
[1729001685485,0.074205,67391.0,67388.0,0.36076676]
[1729001685683,0.3608,67398.0,67388.0,0.43497476]
[1729001685684,0.26,67389.0,67388.0,0.43497476]
[1729001686084,0.26004741,67389.0,67379.0,0.54174771]
[1729001686390,0.26,67382.0,67381.0,0.074216]
[1729001686895,0.001,67383.0,67382.0,0.074214]
[1729001687094,0.001,67383.0,67382.0,0.435014]
[1729001687596,0.074213,67383.0,67382.0,0.435014]
[1729001687987,0.26,67385.0,67382.0,0.3608]
[1729001688200,0.001,67389.0,67388.0,0.074208]
[1729001688389,0.001,67389.0,67388.0,0.435008]
[1729001688909,0.00104741,67389.0,67388.0,1.480168]
[1729001689297,0.00104741,67389.0,67382.0,0.3628]
[1729001689491,0.26,67386.0,67382.0,0.3628]
[1729001689793,0.075213,67383.0,67382.0,0.440014]
[1729001690194,0.00104741,67383.0,67382.0,0.438014]
[1729001690495,0.074213,67383.0,67382.0,0.438014]
[1729001691092,0.075213,67383.0,67382.0,0.438014]
[1729001691685,0.076213,67383.0,67382.0,0.441014]
[1729001691893,0.002,67383.0,67382.0,0.441014]
[1729001692095,0.00204741,67383.0,67382.0,1.041014]
[1729001692298,0.074201,67394.0,67382.0,1.486214]
[1729001692492,0.26,67396.0,67389.0,0.3608]
[1729001692798,0.26,67396.0,67392.0,0.074203]
[1729001692799,0.074203,67393.0,67392.0,0.074203]
[1729001692986,0.074198,67397.0,67389.0,0.3608]
[1729001693298,0.3608,67418.0,67417.0,0.074176]
[1729001693596,0.074186,67408.0,67407.0,0.3608]
[1729001693797,0.26,67408.0,67402.0,0.3608]
[1729001693993,0.074191,67403.0,67402.0,0.3608]
[1729001694297,0.334191,67403.0,67402.0,0.3608]
[1729001694987,0.26,67403.0,67398.0,0.074197]
[1729001695189,0.334196,67399.0,67398.0,0.074197]
[1729001695494,0.074205,67391.0,67390.0,0.3608]
[1729001695790,0.334205,67391.0,67390.0,0.3608]
[1729001696197,0.074211,67385.0,67384.0,0.3608]
[1729001696495,0.334211,67385.0,67384.0,0.3608]
[1729001696997,0.074222,67375.0,67374.0,0.3608]
[1729001697293,0.334222,67375.0,67374.0,0.435023]
[1729001697500,0.334222,67375.0,67374.0,0.3608]
[1729001697798,0.334222,67375.0,67374.0,0.435023]
[1729001697997,0.334218,67379.0,67378.0,0.074219]
[1729001698495,0.074216,67381.0,67380.0,0.074215]
[1729001698690,0.26,67385.0,67374.0,0.3748]
[1729001698691,0.334212,67385.0,67374.0,0.3748]
[1729001698893,0.074222,67375.0,67374.0,0.3748]
[1729001699797,0.074222,67375.0,67374.0,0.3608]
[1729001700193,0.334222,67375.0,67374.0,0.3748]
[1729001700493,0.41211185,67375.0,67374.0,0.014]
[1729001700692,0.334222,67375.0,67374.0,0.028]
[1729001700889,0.4117719,67375.0,67374.0,0.028]
[1729001701092,0.15189962,67375.0,67374.0,0.102223]
[1729001701688,0.15205709,67375.0,67374.0,0.102223]
[1729001701887,0.07783509,67375.0,67374.0,0.102223]
[1729001702096,0.074218,67379.0,67374.0,0.102223]
[1729001702097,0.26,67385.0,67374.0,0.028]
[1729001702307,0.3608,67388.0,67374.0,0.028]
[1729001702308,0.07791997,67384.0,67383.0,0.074213]
[1729001702600,0.07791997,67384.0,67379.0,0.3608]
[1729001702601,0.3608,67388.0,67387.0,0.074209]
[1729001702800,0.43916511,67388.0,67387.0,0.074209]
[1729001703799,0.26,67394.0,67387.0,0.45217317]
[1729001704003,0.07849044,67393.0,67387.0,0.37996417]
[1729001704203,0.07849044,67392.0,67391.0,0.074205]
[1729001704510,0.074208,67388.0,67387.0,0.002]
[1729001704696,0.15250634,67388.0,67387.0,0.002]
[1729001705195,0.074208,67388.0,67387.0,0.002]
[1729001705399,0.16875684,67388.0,67379.0,0.01740416]
[1729001705600,0.16875684,67388.0,67375.0,0.3608]
[1729001705601,0.26,67380.0,67375.0,0.3608]
[1729001706007,0.3608,67387.0,67375.0,0.3608]
[1729001706298,0.334213,67383.0,67382.0,0.074214]
[1729001706504,0.33751555,67383.0,67382.0,0.074214]
[1729001706897,0.3608,67387.0,67386.0,0.07421]
[1729001707297,0.6208,67387.0,67386.0,0.07421]
[1729001707494,0.6208,67387.0,67386.0,0.00421]
[1729001707799,0.6208,67387.0,67381.0,0.3608]
[1729001707800,0.69860852,67387.0,67381.0,0.3608]
[1729001707997,0.26,67382.0,67381.0,0.435016]
[1729001708305,0.33780852,67382.0,67381.0,0.435016]
[1729001708501,0.33780852,67382.0,67381.0,0.43965579]
[1729001709007,0.33780852,67382.0,67381.0,0.435016]
[1729001709205,0.33780852,67382.0,67381.0,0.43965581]
[1729001709405,0.41302252,67382.0,67381.0,0.01263981]
[1729001709703,0.41302252,67382.0,67358.0,0.07713909]
[1729001709704,0.07424,67360.0,67358.0,0.01744452]
[1729001709900,0.07424,67360.0,67358.0,0.074241]
[1729001709901,0.3367408,67359.0,67358.0,0.074241]
[1729001710093,0.3367408,67359.0,67358.0,0.08166702]
[1729001710306,0.4109808,67359.0,67358.0,0.08166702]
[1729001710501,0.3367408,67359.0,67358.0,0.08166702]
[1729001711198,0.26,67359.0,67358.0,0.08166702]
[1729001711408,0.26,67359.0,67358.0,0.08266702]
[1729001711409,0.265,67359.0,67358.0,0.08266702]
[1729001711797,0.005,67359.0,67358.0,0.08266702]
[1729001712096,0.005,67359.0,67358.0,0.68366672]
[1729001712504,0.005,67359.0,67358.0,0.68266672]
[1729001712702,0.019,67359.0,67358.0,0.08366672]
[1729001713299,0.019,67359.0,67358.0,1.04446672]
[1729001713605,0.6623,67381.0,67358.0,1.04446672]
[1729001713606,0.26,67390.0,67358.0,2.29386119]
[1729001713801,0.26,67390.0,67388.0,0.074208]
[1729001713802,0.16662133,67389.0,67388.0,0.074208]
[1729001713993,0.07710214,67389.0,67388.0,0.08163077]
[1729001714198,0.26,67392.0,67388.0,0.00742277]
[1729001714399,0.074201,67395.0,67394.0,0.074201]
[1729001714601,0.074201,67395.0,67394.0,0.08162377]
[1729001714805,0.26,67396.0,67395.0,0.0742]
[1729001715001,0.074182,67412.0,67407.0,0.074187]
[1729001715204,0.26,67413.0,67409.0,0.3608]
[1729001715406,0.3608,67416.0,67410.0,0.00742081]
[1729001715612,0.334169,67424.0,67415.0,0.3608]
[1729001715813,0.334169,67424.0,67405.0,0.074188]
[1729001715814,0.3608,67430.0,67421.0,0.3608]
[1729001716000,0.3608,67430.0,67422.0,0.00741938]
[1729001716197,0.26,67423.0,67408.0,0.3608]
[1729001716406,0.26,67422.0,67408.0,0.3608]
[1729001716596,0.3608,67430.0,67421.0,0.43497]
[1729001716597,0.26,67427.0,67421.0,0.43497]
[1729001716807,0.26,67427.0,67421.0,0.3608]
[1729001717106,0.3608,67438.0,67431.0,0.07416]
[1729001717107,0.26,67433.0,67431.0,0.07416]
[1729001717310,0.26,67433.0,67432.0,0.074159]
[1729001717507,0.074159,67432.0,67431.0,0.3608]
[1729001717697,0.26,67433.0,67422.0,0.3608]
[1729001718004,0.26,67425.0,67424.0,0.074168]
[1729001718204,0.334167,67425.0,67424.0,0.00741878]
[1729001718410,0.074168,67424.0,67422.0,0.07417]
[1729001718918,0.26,67425.0,67422.0,0.001]
[1729001719113,0.26,67425.0,67424.0,0.074168]
[1729001719405,0.074169,67423.0,67422.0,0.001]
[1729001719710,0.074173,67420.0,67419.0,0.3608]
[1729001719903,0.334173,67420.0,67419.0,0.3608]
[1729001721012,0.26,67420.0,67414.0,0.01712552]
[1729001721304,0.26,67415.0,67414.0,0.074179]
[1729001721605,0.074182,67411.0,67406.0,0.01737576]
[1729001721810,0.074182,67411.0,67407.0,0.074187]
[1729001722000,0.26,67415.0,67406.0,0.01737576]
[1729001722201,0.26,67419.0,67414.0,0.080179]
[1729001722406,0.26,67415.0,67414.0,0.012]
[1729001722610,0.334178,67415.0,67414.0,0.012]
[1729001722909,0.334178,67415.0,67414.0,0.006]
[1729001723110,0.26,67415.0,67398.0,0.3608]
[1729001723412,0.26,67399.0,67398.0,0.3608]
[1729001723999,0.334196,67399.0,67398.0,0.3608]
[1729001724209,0.26,67399.0,67398.0,0.434997]
[1729001724403,0.26,67407.0,67398.0,0.9608]
[1729001724605,0.26,67407.0,67398.0,0.3608]
[1729001724803,0.26,67407.0,67398.0,0.3748]
[1729001725004,0.001,67415.0,67406.0,0.3608]
[1729001725210,0.3608,67422.0,67412.0,0.3608]
[1729001725407,0.26,67413.0,67399.0,0.3608]
[1729001725603,0.07419,67405.0,67401.0,0.074193]
[1729001725805,0.3608,67416.0,67401.0,0.4]
[1729001726102,0.074184,67410.0,67406.0,0.3608]
[1729001726310,0.074181,67413.0,67409.0,0.074184]
[1729001726504,0.3608,67416.0,67406.0,0.3608]
[1729001726710,0.3608,67416.0,67411.0,0.074182]
[1729001726905,0.76292001,67424.0,67406.0,0.3608]
[1729001727105,0.7608,67424.0,67406.0,0.3608]
[1729001727307,0.3608,67424.0,67407.0,0.4]
[1729001727508,0.074168,67425.0,67420.0,0.434972]
[1729001727708,0.3608,67432.0,67421.0,0.074171]
[1729001728015,0.3608,67432.0,67420.0,0.3608]
[1729001728016,0.074166,67426.0,67424.0,0.074168]
[1729001728309,0.074165,67427.0,67420.0,0.3608]
[1729001728509,0.006,67424.0,67423.0,0.074169]
[1729001728714,0.074155,67437.0,67423.0,0.074169]
[1729001728715,0.074159,67433.0,67429.0,0.074162]
[1729001728920,0.074159,67433.0,67423.0,0.44496]
[1729001728921,0.01412023,67441.0,67427.0,0.3608]
[1729001729116,0.007,67432.0,67431.0,0.07416]
[1729001729810,0.007,67432.0,67431.0,1.11904]
[1729001730914,0.00222514,67443.0,67441.0,0.074148]
[1729001731115,0.00222514,67443.0,67442.0,0.074148]
[1729001732009,0.00222514,67443.0,67442.0,1.118988]
[1729001732217,0.00922514,67443.0,67442.0,1.118988]
[1729001732911,0.00922514,67443.0,67432.0,0.7159]
[1729001732912,0.07415,67441.0,67426.0,0.36302456]
[1729001733104,0.074165,67427.0,67426.0,0.00222456]
[1729001733412,0.074161,67431.0,67426.0,0.07638956]
[1729001733713,0.4,67432.0,67426.0,0.00222456]
[1729001734016,0.074163,67430.0,67426.0,0.00222456]
[1729001734216,0.074163,67430.0,67428.0,0.074164]
[1729001734411,0.4,67432.0,67426.0,0.00222456]
[1729001734609,0.3608,67433.0,67426.0,0.36302456]
[1729001734806,0.3608,67433.0,67432.0,0.074159]
[1729001736319,0.3608,67433.0,67432.0,0.076159]
[1729001736522,0.3608,67433.0,67432.0,0.002]
[1729001736523,0.434958,67433.0,67432.0,0.002]
[1729001736719,0.3608,67433.0,67432.0,0.071159]
[1729001738925,0.434958,67433.0,67432.0,0.01375857]
[1729001739215,0.074162,67430.0,67429.0,0.074162]
[1729001739420,0.474165,67427.0,67426.0,0.36302456]
[1729001739612,0.4,67432.0,67431.0,0.07416]
[1729001739817,0.4,67432.0,67426.0,0.37664654]
[1729001740010,0.074165,67428.0,67426.0,0.45081154]
[1729001740214,0.4,67432.0,67426.0,0.37664654]
[1729001740417,0.074162,67430.0,67428.0,0.074163]
[1729001740615,0.074162,67430.0,67426.0,0.37664654]
[1729001740616,0.4,67432.0,67429.0,0.074162]
[1729001740815,0.074161,67431.0,67429.0,0.078162]
[1729001741015,0.074161,67431.0,67429.0,0.082162]
[1729001741221,0.3608,67433.0,67432.0,0.074159]
[1729001741615,0.3608,67433.0,67428.0,0.008]
[1729001741922,0.074163,67429.0,67428.0,0.008]
[1729001742124,0.074163,67429.0,67428.0,0.004]
[1729001742323,0.074163,67429.0,67426.0,0.00222456]
[1729001742525,0.074165,67427.0,67426.0,0.00222456]
[1729001743023,0.434965,67427.0,67426.0,0.00222456]
[1729001743422,0.074175,67418.0,67417.0,0.074176]
[1729001743821,0.074168,67425.0,67423.0,0.074169]
[1729001744122,0.3608,67433.0,67432.0,0.074159]
[1729001744327,0.074154,67437.0,67435.0,0.074156]
[1729001744509,0.074154,67437.0,67432.0,0.3608]
[1729001744510,0.074154,67437.0,67436.0,0.074155]
[1729001744919,0.074156,67436.0,67435.0,0.074156]
[1729001745117,0.074158,67433.0,67432.0,0.3608]
[1729001745311,0.074158,67433.0,67432.0,0.434959]
[1729001745519,0.074155,67436.0,67433.0,0.074158]
[1729001745718,0.006,67437.0,67435.0,0.074156]
[1729001745926,0.006,67437.0,67432.0,0.3608]
[1729001746122,0.006,67437.0,67430.0,0.01411187]
[1729001746426,0.074162,67430.0,67427.0,0.074165]
[1729001747026,0.074166,67426.0,67424.0,0.3608]
[1729001747221,0.074163,67430.0,67424.0,0.3608]
[1729001747421,0.074159,67432.0,67425.0,0.074167]
[1729001747622,0.074167,67426.0,67421.0,0.074171]
[1729001747829,0.26,67422.0,67420.0,0.074172]
[1729001748124,0.26,67422.0,67411.0,0.3608]
[1729001748125,0.074179,67415.0,67411.0,0.3608]
[1729001748327,0.33418,67413.0,67411.0,0.434982]
[1729001748519,0.074186,67408.0,67402.0,0.3608]
[1729001748723,0.074186,67408.0,67394.0,0.3608]
[1729001748724,0.334186,67408.0,67394.0,0.3608]
[1729001748919,0.07419,67404.0,67401.0,0.074194]
[1729001749124,0.26,67408.0,67400.0,0.01411648]
[1729001749125,0.26,67408.0,67402.0,0.074192]
[1729001749323,0.074189,67405.0,67403.0,0.074191]
[1729001749519,0.074187,67408.0,67404.0,0.07419]
[1729001749725,0.074187,67408.0,67396.0,0.26]
[1729001749931,0.074187,67408.0,67405.0,0.074188]
[1729001750226,0.074178,67415.0,67412.0,0.074181]
[1729001750417,0.074185,67409.0,67406.0,0.26]
[1729001750728,0.3608,67417.0,67407.0,0.023]
[1729001750729,0.075186,67408.0,67407.0,0.023]
[1729001751323,0.074186,67408.0,67405.0,0.006]
[1729001751817,0.074186,67408.0,67403.0,0.3608]
[1729001752023,0.074186,67408.0,67407.0,0.087187]
[1729001752220,0.074186,67408.0,67407.0,0.098187]
[1729001752424,0.075186,67408.0,67407.0,0.024]
[1729001752818,0.001,67408.0,67407.0,0.024]
[1729001753023,0.3608,67411.0,67410.0,0.074184]
[1729001754022,0.3608,67411.0,67410.0,0.08794731]
[1729001754225,0.3608,67411.0,67410.0,0.06904731]
[1729001754423,0.001,67411.0,67410.0,0.08804731]
[1729001754928,0.074163,67429.0,67410.0,0.08804731]
[1729001754929,0.3608,67427.0,67410.0,1.43860331]
[1729001755123,0.26,67434.0,67426.0,0.074166]
[1729001755322,0.07416,67432.0,67422.0,0.07417]
[1729001755526,0.074161,67431.0,67429.0,0.074162]
[1729001755732,0.074161,67431.0,67430.0,0.074162]
[1729001756625,0.074161,67431.0,67428.0,0.074163]
[1729001756820,0.074161,67431.0,67429.0,0.074163]
[1729001757031,0.074161,67431.0,67429.0,0.054163]
[1729001757224,0.36292001,67435.0,67422.0,0.6346972]
[1729001757429,0.0138268,67447.0,67429.0,0.3608]
[1729001757430,0.26,67443.0,67429.0,0.3608]
[1729001757731,0.26,67443.0,67435.0,0.074155]
[1729001758032,0.334152,67439.0,67436.0,0.074155]
[1729001758232,0.334152,67439.0,67437.0,0.074154]
[1729001758433,0.26,67439.0,67429.0,0.3638]
[1729001758735,0.434955,67436.0,67434.0,0.074156]
[1729001758935,0.434955,67436.0,67429.0,0.37448877]
[1729001759120,0.434955,67436.0,67435.0,0.001]
[1729001759320,0.26,67439.0,67435.0,0.07979229]
[1729001759528,0.009,67443.0,67435.0,0.07979229]
[1729001759529,0.009,67443.0,67436.0,0.36543629]
[1729001759724,0.009,67443.0,67442.0,0.074148]
[1729001759925,0.009,67443.0,67442.0,0.07878429]
[1729001760521,0.3608,67448.0,67442.0,0.07878429]
[1729001760736,0.01391673,67461.0,67447.0,0.26]
[1729001761029,0.31642001,67465.0,67452.0,0.26]
[1729001761030,0.3143,67465.0,67452.0,0.26]
[1729001761335,0.36292001,67466.0,67456.0,0.26]
[1729001761539,0.3608,67466.0,67457.0,0.00463447]
[1729001761829,0.014,67448.0,67447.0,0.074142]
[1729001762132,0.088143,67448.0,67445.0,0.29738411]
[1729001762435,0.074146,67444.0,67442.0,0.002]
[1729001762826,0.074147,67443.0,67442.0,0.002]
[1729001763031,0.074147,67443.0,67442.0,0.001]
[1729001763335,0.074147,67443.0,67430.0,0.3608]
[1729001763336,0.074157,67434.0,67430.0,0.074161]
[1729001763534,0.26,67432.0,67431.0,0.00463622]
[1729001763928,0.26,67432.0,67426.0,0.3744312]
[1729001763929,0.26,67432.0,67426.0,0.4485972]
[1729001764133,0.33416,67432.0,67426.0,0.3744312]
[1729001764330,0.3608,67440.0,67427.0,0.00463625]
[1729001764331,0.26,67429.0,67427.0,0.00463625]
[1729001764537,0.334163,67429.0,67425.0,0.074167]
[1729001764933,0.26,67429.0,67424.0,0.01390018]
[1729001765134,0.074162,67431.0,67428.0,0.074164]
[1729001765333,0.26,67433.0,67427.0,0.074164]
[1729001765635,0.694964,67428.0,67427.0,0.005]
[1729001765835,0.834964,67428.0,67427.0,0.005]
[1729001767037,0.834964,67428.0,67425.0,0.005]
[1729001767237,0.834964,67428.0,67415.0,0.01354017]
[1729001767430,0.074166,67426.0,67419.0,0.3608]
[1729001767632,0.074165,67428.0,67419.0,0.3608]
[1729001767833,0.07416,67432.0,67430.0,0.074161]
[1729001768034,0.4,67437.0,67430.0,0.074161]
[1729001768337,0.4,67437.0,67419.0,0.3608]
[1729001768543,0.4,67432.0,67420.0,0.00463654]
[1729001768843,0.01348913,67446.0,67414.0,0.00741818]
[1729001768844,0.074178,67415.0,67414.0,0.00741818]
[1729001769136,0.834978,67415.0,67414.0,0.00741818]
[1729001769842,0.834978,67415.0,67403.0,0.3608]
[1729001769843,0.07419,67404.0,67403.0,0.3608]
[1729001770139,0.07419,67404.0,67390.0,0.3608]
[1729001770140,0.074192,67403.0,67394.0,0.0742]
[1729001770343,0.4,67404.0,67384.0,0.9002]
[1729001770344,0.074194,67401.0,67396.0,0.074198]
[1729001770640,0.3608,67397.0,67396.0,0.074198]
[1729001770841,0.434999,67397.0,67393.0,0.074201]
[1729001771145,0.434999,67397.0,67389.0,0.074207]
[1729001771146,0.074203,67393.0,67389.0,0.074207]
[1729001771336,0.074203,67393.0,67385.0,0.074211]
[1729001771540,0.4,67392.0,67386.0,0.00463925]
[1729001771836,0.4,67392.0,67374.0,0.3112]
[1729001771837,0.474204,67392.0,67379.0,0.0136551]
[1729001772040,0.4,67392.0,67380.0,0.00463932]
[1729001772234,0.074213,67383.0,67381.0,0.00463932]
[1729001772433,0.4,67387.0,67381.0,0.22134678]
[1729001772634,0.3608,67390.0,67382.0,0.00463962]
[1729001772837,0.07421,67386.0,67384.0,0.074212]
[1729001773030,0.435006,67390.0,67386.0,0.07421]
[1729001773235,0.074211,67386.0,67378.0,0.37460142]
[1729001773439,0.074211,67386.0,67379.0,0.00463961]
[1729001773643,0.074211,67386.0,67382.0,0.074214]
[1729001773943,0.3608,67390.0,67378.0,0.77460142]
[1729001774137,0.3608,67390.0,67389.0,0.074207]
[1729001774330,0.3608,67397.0,67392.0,0.074203]
[1729001774331,0.001,67393.0,67392.0,0.074203]
[1729001774535,0.001,67393.0,67392.0,0.3608]
[1729001774742,0.075203,67393.0,67385.0,0.59185676]
[1729001774940,0.075203,67393.0,67386.0,0.074209]
[1729001774941,0.074206,67390.0,67386.0,0.074209]
[1729001775244,0.001,67390.0,67386.0,0.22405676]
[1729001775542,0.001,67390.0,67389.0,0.009]
[1729001775741,0.001,67390.0,67389.0,0.083207]
[1729001775940,0.3608,67402.0,67389.0,0.009]
[1729001776239,0.3608,67402.0,67391.0,0.3608]
[1729001776741,0.4,67394.0,67389.0,0.009]
[1729001776944,0.4,67394.0,67385.0,0.37968425]
[1729001777144,0.474209,67388.0,67385.0,0.3708]
[1729001777345,0.07421,67386.0,67385.0,0.3708]
[1729001777540,0.07421,67386.0,67385.0,0.3658]
[1729001778042,0.4,67388.0,67378.0,0.3608]
[1729001778248,0.7608,67388.0,67378.0,0.37440439]
[1729001778546,0.7608,67388.0,67379.0,0.22224446]
[1729001778933,0.074214,67383.0,67379.0,0.22224446]
[1729001779139,0.001,67386.0,67379.0,0.22224446]
[1729001779347,0.001,67386.0,67384.0,0.3608]
[1729001779641,0.074211,67385.0,67384.0,0.3608]
[1729001779849,0.001,67388.0,67384.0,0.3608]
[1729001780149,0.074209,67387.0,67384.0,0.3608]
[1729001780547,0.074209,67387.0,67383.0,0.074213]
[1729001780749,0.074209,67387.0,67384.0,0.013]
[1729001781051,0.074211,67385.0,67384.0,0.013]
[1729001781245,0.001,67388.0,67379.0,0.01]
[1729001781451,0.074213,67384.0,67378.0,0.3608]
[1729001781646,0.074216,67381.0,67380.0,0.22193811]
[1729001781952,0.074216,67381.0,67379.0,0.22193811]
[1729001782257,0.074216,67381.0,67378.0,0.3608]
[1729001782546,0.074211,67386.0,67379.0,0.23657764]
[1729001782745,0.401,67388.0,67379.0,0.23193811]
[1729001782948,0.074215,67382.0,67379.0,0.23193811]
[1729001783152,0.001,67388.0,67379.0,0.23193811]
[1729001783651,0.074217,67380.0,67379.0,0.021]
[1729001784743,0.074217,67380.0,67379.0,0.024]
[1729001784938,0.074217,67380.0,67379.0,0.026]
[1729001785150,0.074217,67380.0,67361.0,0.3608]
[1729001785151,0.6,67380.0,67370.0,0.00222645]
[1729001785447,0.074227,67371.0,67370.0,0.00222645]
[1729001786244,0.334227,67371.0,67370.0,0.00222645]
[1729001786748,0.334227,67371.0,67370.0,0.01322645]
[1729001787451,0.335227,67371.0,67370.0,0.01622645]
[1729001787856,0.336227,67371.0,67370.0,0.01622645]
[1729001788052,0.336227,67371.0,67370.0,0.014]
[1729001788355,0.7954324,67371.0,67370.0,0.014]
[1729001788651,0.336227,67371.0,67370.0,0.014]
[1729001788960,0.336227,67371.0,67341.0,0.3608]
[1729001788961,1.56728,67371.0,67341.0,0.3608]
[1729001789261,0.6208,67347.0,67333.0,0.6509]
[1729001789548,0.6208,67347.0,67329.0,0.5764]
[1729001789549,0.8808,67334.0,67329.0,0.074272]
[1729001789741,0.26,67330.0,67324.0,0.22309848]
[1729001789947,0.26,67330.0,67326.0,0.074276]
[1729001789948,0.3608,67327.0,67326.0,0.074276]
[1729001790350,0.3608,67327.0,67326.0,0.22309848]
[1729001790550,0.3608,67327.0,67322.0,0.01371002]
[1729001790753,0.3608,67325.0,67324.0,0.074278]
[1729001791256,0.6208,67325.0,67324.0,0.07892128]
[1729001791453,0.6208,67325.0,67324.0,0.074278]
[1729001792047,0.6218,67325.0,67324.0,0.074278]
[1729001792458,0.3608,67354.0,67335.0,0.074266]
[1729001792649,0.26,67348.0,67343.0,0.074257]
[1729001792854,0.3608,67354.0,67342.0,0.3608]
[1729001792855,0.074248,67352.0,67346.0,0.074254]
[1729001793052,0.3608,67348.0,67336.0,0.5963]
[1729001793253,0.074258,67343.0,67337.0,0.074264]
[1729001793459,0.26,67338.0,67331.0,0.3608]
[1729001793650,0.26,67332.0,67331.0,0.44883831]
[1729001794051,0.26,67332.0,67331.0,0.3608]
[1729001794249,0.26,67336.0,67335.0,0.074266]
[1729001794650,0.26,67340.0,67331.0,0.3608]
[1729001794952,0.26,67336.0,67335.0,0.074266]
[1729001795154,0.3608,67347.0,67343.0,0.074256]
[1729001795350,0.26,67345.0,67342.0,0.3608]
[1729001795550,0.334258,67343.0,67336.0,0.074264]
[1729001795750,0.26,67337.0,67334.0,0.074267]
[1729001795952,0.6208,67335.0,67332.0,0.22382116]
[1729001796152,0.26,67333.0,67329.0,0.01387122]
[1729001796357,0.3608,67335.0,67326.0,0.22382116]
[1729001796563,0.3608,67335.0,67325.0,0.3608]
[1729001796758,0.26,67333.0,67331.0,0.07427]
[1729001797055,0.26,67332.0,67328.0,0.074273]
[1729001797262,0.074269,67333.0,67332.0,0.004]
[1729001797858,0.52,67333.0,67325.0,0.3608]
[1729001798055,0.334276,67326.0,67325.0,0.3608]
[1729001798252,0.334276,67326.0,67305.0,0.3608]
[1729001798253,0.074281,67322.0,67305.0,0.3608]
[1729001798452,0.955091,67313.0,67305.0,0.3608]
[1729001798657,0.334298,67306.0,67305.0,0.3608]
[1729001798854,0.26,67306.0,67305.0,0.3608]
[1729001799156,0.334298,67306.0,67305.0,0.3608]
[1729001799352,0.26,67306.0,67305.0,0.3608]
[1729001799553,0.334298,67306.0,67305.0,0.3608]
[1729001799954,0.594298,67306.0,67305.0,0.3608]
[1729001800266,0.52,67306.0,67296.0,0.3608]
[1729001800459,0.335298,67306.0,67305.0,0.014]
[1729001800653,0.696098,67306.0,67305.0,0.014]
[1729001800959,0.696098,67306.0,67291.0,0.3608]
[1729001800960,0.074314,67292.0,67291.0,0.3608]
[1729001801271,0.0743,67305.0,67282.0,0.07655334]
[1729001801272,0.07432,67286.0,67282.0,0.07655334]
[1729001801485,0.074323,67284.0,67282.0,0.00222934]
[1729001801763,0.435124,67283.0,67282.0,0.00222934]
[1729001801951,0.435124,67283.0,67264.0,0.3608]
[1729001801952,0.3608,67283.0,67267.0,0.074341]
[1729001802153,0.26,67268.0,67267.0,0.074341]
[1729001802660,0.26,67272.0,67267.0,0.074341]
[1729001802862,0.26,67268.0,67264.0,0.3608]
[1729001803064,0.26,67268.0,67264.0,0.44876417]
[1729001803258,0.26,67268.0,67265.0,0.29747588]
[1729001803565,0.26,67268.0,67242.0,0.3608]
[1729001803566,0.9816,67266.0,67242.0,0.3608]
[1729001803869,0.3608,67194.0,67189.0,0.00289542]